[Event "*** SCC Grand Prix: Titled Tuesday Blitz"]
[Site "Chess.com"]
[Date "2020.06.02"]
[Round "6"]
[White "pastouche06"]
[Black "KerryStead"]
[Result "1-0"]
[WhiteElo "2490"]
[BlackElo "2085"]
[TimeControl "180+1"]
[EndTime "11:08:58 PDT"]
[Termination "pastouche06 won on time"]

1. d4 {[%clk 0:03:00.9]} 1... c5 {[%clk 0:02:58.7]} 2. d5 {[%clk 0:03:01]} 2...
e5 {[%clk 0:02:58.2]} 3. Nc3 {[%clk 0:03:01.4]} 3... d6 {[%clk 0:02:57.7]} 4. e4
{[%clk 0:03:01.8]} 4... a6 {[%clk 0:02:57]} 5. a4 {[%clk 0:03:01.3]} 5... f5
{[%clk 0:02:53.7]} 6. exf5 {[%clk 0:03:00.7]} 6... Bxf5 {[%clk 0:02:53.2]} 7.
Bd3 {[%clk 0:03:01.1]} 7... Bxd3 {[%clk 0:02:52.2]} 8. Qxd3 {[%clk 0:03:01.3]}
8... Nf6 {[%clk 0:02:52.8]} 9. Nge2 {[%clk 0:03:00.3]} 9... Be7 {[%clk
0:02:52.7]} 10. Ng3 {[%clk 0:03:00]} 10... g6 {[%clk 0:02:47.8]} 11. O-O {[%clk
0:02:50.3]} 11... Nbd7 {[%clk 0:02:46.7]} 12. f4 {[%clk 0:02:45.1]} 12... O-O
{[%clk 0:02:39.9]} 13. f5 {[%clk 0:02:41.2]} 13... Kg7 {[%clk 0:02:26.9]} 14.
Qd2 {[%clk 0:02:26.5]} 14... Ng8 {[%clk 0:02:25.5]} 15. Nce4 {[%clk 0:02:18]}
15... Rc8 {[%clk 0:01:53.1]} 16. c4 {[%clk 0:02:17]} 16... b6 {[%clk 0:01:36]}
17. Ra3 {[%clk 0:02:12]} 17... Rb8 {[%clk 0:01:34.5]} 18. Raf3 {[%clk
0:01:31.4]} 18... b5 {[%clk 0:01:32.3]} 19. axb5 {[%clk 0:01:23.2]} 19... axb5
{[%clk 0:01:32.1]} 20. b3 {[%clk 0:01:23.3]} 20... bxc4 {[%clk 0:01:30.5]} 21.
bxc4 {[%clk 0:01:24.2]} 21... Rb4 {[%clk 0:01:20]} 22. Qe2 {[%clk 0:00:55.9]}
22... Ndf6 {[%clk 0:01:08.7]} 23. Ng5 {[%clk 0:00:54.6]} 23... Qb8 {[%clk
0:00:40.1]} 24. Ne6+ {[%clk 0:00:53.2]} 24... Kh8 {[%clk 0:00:33.5]} 25. fxg6
{[%clk 0:00:53.2]} 25... hxg6 {[%clk 0:00:27.1]} 26. Nxf8 {[%clk 0:00:52.5]}
26... Qxf8 {[%clk 0:00:24]} 27. Ne4 {[%clk 0:00:52]} 27... Kg7 {[%clk
0:00:17.6]} 28. Ng5 {[%clk 0:00:51.4]} 28... Qb8 {[%clk 0:00:15.1]} 29. Ne6+
{[%clk 0:00:47.4]} 29... Kf7 {[%clk 0:00:14.6]} 30. Rh3 {[%clk 0:00:39.5]} 1-0

[Event "*** SCC Grand Prix: Titled Tuesday Blitz"]
[Site "Chess.com"]
[Date "2020.06.02"]
[Round "6"]
[White "GregShahade"]
[Black "InitiatingASC"]
[Result "0-1"]
[WhiteElo "2571"]
[BlackElo "2410"]
[TimeControl "180+1"]
[EndTime "11:08:59 PDT"]
[Termination "InitiatingASC won by checkmate"]

1. e4 {[%clk 0:01:13]} 1... c5 {[%clk 0:02:58.6]} 2. Nf3 {[%clk 0:01:12]} 2...
Nc6 {[%clk 0:02:58.8]} 3. d4 {[%clk 0:01:12]} 3... cxd4 {[%clk 0:02:59.7]} 4.
Nxd4 {[%clk 0:01:12.3]} 4... Nf6 {[%clk 0:03:00.3]} 5. Nc3 {[%clk 0:01:12.5]}
5... e5 {[%clk 0:03:00.6]} 6. Ndb5 {[%clk 0:01:12.3]} 6... h6 {[%clk 0:03:01.1]}
7. Nd6+ {[%clk 0:01:11]} 7... Bxd6 {[%clk 0:03:01.3]} 8. Qxd6 {[%clk 0:01:11.9]}
8... Qe7 {[%clk 0:03:01.9]} 9. Qxe7+ {[%clk 0:01:12.1]} 9... Kxe7 {[%clk
0:03:02.8]} 10. Bd3 {[%clk 0:01:12.5]} 10... Rd8 {[%clk 0:03:03]} 11. O-O {[%clk
0:01:13.1]} 11... d6 {[%clk 0:03:03.6]} 12. a3 {[%clk 0:01:12.2]} 12... Be6
{[%clk 0:03:04]} 13. Re1 {[%clk 0:01:12.4]} 13... d5 {[%clk 0:03:03.3]} 14. exd5
{[%clk 0:01:12]} 14... Nxd5 {[%clk 0:03:04.2]} 15. Nxd5+ {[%clk 0:01:12.2]}
15... Rxd5 {[%clk 0:03:03.1]} 16. Be3 {[%clk 0:01:12.4]} 16... f5 {[%clk
0:02:58.6]} 17. Bc4 {[%clk 0:01:10.6]} 17... Rd7 {[%clk 0:02:55.2]} 18. Bc5+
{[%clk 0:01:10.3]} 18... Kf6 {[%clk 0:02:54.3]} 19. Bxe6 {[%clk 0:01:10.7]}
19... Kxe6 {[%clk 0:02:54.5]} 20. Rad1 {[%clk 0:01:11.2]} 20... Rad8 {[%clk
0:02:54.2]} 21. Rxd7 {[%clk 0:01:11.3]} 21... Rxd7 {[%clk 0:02:54.6]} 22. Be3
{[%clk 0:01:10.3]} 22... Rd5 {[%clk 0:02:48.7]} 23. Kf1 {[%clk 0:01:09.1]} 23...
Nd4 {[%clk 0:02:39.6]} 24. Bxd4 {[%clk 0:01:08.4]} 24... Rxd4 {[%clk 0:02:39.5]}
25. Ke2 {[%clk 0:01:07.9]} 25... Re4+ {[%clk 0:02:30.1]} 26. Kd2 {[%clk
0:01:07.2]} 26... Rxe1 {[%clk 0:02:31]} 27. Kxe1 {[%clk 0:01:07.6]} 27... Kd5
{[%clk 0:02:27.9]} 28. Kd2 {[%clk 0:01:06.5]} 28... Kd4 {[%clk 0:02:27.6]} 29.
b3 {[%clk 0:01:06.4]} 29... b5 {[%clk 0:02:26.9]} 30. c3+ {[%clk 0:01:06.3]}
30... Ke4 {[%clk 0:02:26.3]} 31. f3+ {[%clk 0:01:03.7]} 31... Kf4 {[%clk
0:02:22.5]} 32. Ke2 {[%clk 0:01:03.1]} 32... e4 {[%clk 0:02:18.4]} 33. g3+
{[%clk 0:01:02.4]} 33... Ke5 {[%clk 0:02:18.3]} 34. Ke3 {[%clk 0:00:59.7]} 34...
exf3 {[%clk 0:02:15.4]} 35. Kxf3 {[%clk 0:00:59.4]} 35... g5 {[%clk 0:02:15.6]}
36. Ke3 {[%clk 0:00:54.8]} 36... Kd5 {[%clk 0:02:11.7]} 37. Kd3 {[%clk
0:00:28.2]} 37... Kc5 {[%clk 0:01:57.9]} 38. h4 {[%clk 0:00:19.6]} 38... a5
{[%clk 0:01:48.4]} 39. h5 {[%clk 0:00:17.2]} 39... a4 {[%clk 0:01:44.9]} 40.
bxa4 {[%clk 0:00:16.9]} 40... bxa4 {[%clk 0:01:43]} 41. c4 {[%clk 0:00:15.7]}
41... f4 {[%clk 0:01:18.7]} 42. gxf4 {[%clk 0:00:15.7]} 42... gxf4 {[%clk
0:01:19]} 43. Ke4 {[%clk 0:00:16.2]} 43... Kxc4 {[%clk 0:01:19.2]} 44. Kxf4
{[%clk 0:00:16.5]} 44... Kb3 {[%clk 0:01:20.1]} 45. Kf5 {[%clk 0:00:16.9]} 45...
Kxa3 {[%clk 0:01:20.7]} 46. Kg6 {[%clk 0:00:17.8]} 46... Kb3 {[%clk 0:01:21.3]}
47. Kxh6 {[%clk 0:00:18.4]} 47... a3 {[%clk 0:01:21.9]} 48. Kg7 {[%clk
0:00:15.9]} 48... a2 {[%clk 0:01:22.1]} 49. h6 {[%clk 0:00:16.8]} 49... a1=Q+
{[%clk 0:01:22.2]} 50. Kg8 {[%clk 0:00:17.4]} 50... Qa8+ {[%clk 0:01:20.5]} 51.
Kg7 {[%clk 0:00:17.6]} 51... Qb7+ {[%clk 0:01:18.3]} 52. Kg6 {[%clk 0:00:17.4]}
52... Qc8 {[%clk 0:01:12.7]} 53. Kg7 {[%clk 0:00:17.3]} 53... Qd7+ {[%clk
0:01:12.5]} 54. Kg8 {[%clk 0:00:17.5]} 54... Qe6+ {[%clk 0:01:09.8]} 55. Kg7
{[%clk 0:00:17.9]} 55... Qe5+ {[%clk 0:01:07.2]} 56. Kg6 {[%clk 0:00:08.2]}
56... Qh8 {[%clk 0:01:06.5]} 57. h7 {[%clk 0:00:08.2]} 57... Kc4 {[%clk
0:01:06.5]} 58. Kh6 {[%clk 0:00:08.2]} 58... Kd5 {[%clk 0:01:06.7]} 59. Kg6
{[%clk 0:00:08.8]} 59... Ke6 {[%clk 0:01:06.8]} 60. Kh6 {[%clk 0:00:09.4]} 60...
Kf5 {[%clk 0:01:06.5]} 61. Kh5 {[%clk 0:00:10.3]} 61... Qxh7# {[%clk 0:01:06.9]}
0-1

[Event "*** SCC Grand Prix: Titled Tuesday Blitz"]
[Site "Chess.com"]
[Date "2020.06.02"]
[Round "6"]
[White "HunterBRR"]
[Black "frankshar"]
[Result "0-1"]
[WhiteElo "2027"]
[BlackElo "2370"]
[TimeControl "180+1"]
[EndTime "11:08:59 PDT"]
[Termination "frankshar won on time"]

1. d4 {[%clk 0:03:00.9]} 1... Nf6 {[%clk 0:02:58.6]} 2. c4 {[%clk 0:03:00.7]}
2... e6 {[%clk 0:02:56.8]} 3. Nf3 {[%clk 0:03:00.3]} 3... d5 {[%clk 0:02:51.2]}
4. Nc3 {[%clk 0:03:00.1]} 4... c6 {[%clk 0:02:50.9]} 5. Bg5 {[%clk 0:02:58.9]}
5... Nbd7 {[%clk 0:02:50.5]} 6. cxd5 {[%clk 0:02:58.2]} 6... exd5 {[%clk
0:02:49.5]} 7. e3 {[%clk 0:02:58.3]} 7... Qa5 {[%clk 0:02:49.4]} 8. Bxf6 {[%clk
0:02:43.9]} 8... Nxf6 {[%clk 0:02:49.1]} 9. Qc2 {[%clk 0:02:44.5]} 9... Bd6
{[%clk 0:02:37.3]} 10. Bd3 {[%clk 0:02:43.1]} 10... O-O {[%clk 0:02:37.4]} 11.
O-O {[%clk 0:02:40.5]} 11... Bg4 {[%clk 0:02:37]} 12. Ne5 {[%clk 0:02:38.6]}
12... Bh5 {[%clk 0:02:30.5]} 13. a3 {[%clk 0:02:32.8]} 13... Qd8 {[%clk
0:02:18.2]} 14. b4 {[%clk 0:02:29.5]} 14... a6 {[%clk 0:02:13]} 15. Rab1 {[%clk
0:02:27.6]} 15... Bg6 {[%clk 0:01:56.7]} 16. Nxg6 {[%clk 0:02:15]} 16... hxg6
{[%clk 0:01:57.6]} 17. h3 {[%clk 0:02:14.9]} 17... Qe7 {[%clk 0:01:54.8]} 18.
Ne2 {[%clk 0:02:03.1]} 18... a5 {[%clk 0:01:45.7]} 19. b5 {[%clk 0:01:37]} 19...
Bxa3 {[%clk 0:01:33.6]} 20. bxc6 {[%clk 0:01:36.3]} 20... bxc6 {[%clk
0:01:33.6]} 21. Qxc6 {[%clk 0:01:30.8]} 21... Rfc8 {[%clk 0:01:30.6]} 22. Qa4
{[%clk 0:01:19.3]} 22... Qd6 {[%clk 0:01:25.2]} 23. Rb7 {[%clk 0:00:40.2]} 23...
Bb4 {[%clk 0:01:16.1]} 24. Qb5 {[%clk 0:00:19.7]} 24... Rab8 {[%clk 0:01:05.5]}
25. Rxb8 {[%clk 0:00:14]} 25... Rxb8 {[%clk 0:01:06.4]} 26. Qa4 {[%clk
0:00:14.1]} 26... Nd7 {[%clk 0:01:02]} 27. Rc1 {[%clk 0:00:13.7]} 27... Nb6
{[%clk 0:00:55.1]} 28. Qc6 {[%clk 0:00:10]} 28... Nc4 {[%clk 0:00:50.7]} 29.
Qxd6 {[%clk 0:00:08.6]} 29... Nxd6 {[%clk 0:00:51.6]} 30. Rc6 {[%clk 0:00:07.2]}
30... a4 {[%clk 0:00:50.7]} 31. Ra6 {[%clk 0:00:06]} 31... a3 {[%clk 0:00:50.3]}
32. Nc1 {[%clk 0:00:05.1]} 32... Nc4 {[%clk 0:00:47.3]} 33. Bxc4 {[%clk
0:00:03.9]} 33... dxc4 {[%clk 0:00:47.2]} 34. Na2 {[%clk 0:00:04.4]} 34... Be7
{[%clk 0:00:46.3]} 35. Rc6 {[%clk 0:00:03.2]} 35... Rb1+ {[%clk 0:00:44.6]} 36.
Kh2 {[%clk 0:00:02.5]} 36... Rb2 {[%clk 0:00:45.5]} 37. Nc3 {[%clk 0:00:02.6]}
37... Bb4 {[%clk 0:00:40.7]} 38. Rc8+ {[%clk 0:00:01.6]} 38... Kh7 {[%clk
0:00:40.4]} 39. Rxc4 {[%clk 0:00:01.5]} 39... a2 {[%clk 0:00:35]} 0-1

[Event "*** SCC Grand Prix: Titled Tuesday Blitz"]
[Site "Chess.com"]
[Date "2020.06.02"]
[Round "6"]
[White "PauloCesarCosta_sad"]
[Black "dolynachess"]
[Result "1-0"]
[WhiteElo "2198"]
[BlackElo "2336"]
[TimeControl "180+1"]
[EndTime "11:08:59 PDT"]
[Termination "PauloCesarCosta_sad won on time"]

1. Nf3 {[%clk 0:03:00.9]} 1... Nf6 {[%clk 0:02:57.8]} 2. c4 {[%clk 0:03:01]}
2... c5 {[%clk 0:02:57.6]} 3. g3 {[%clk 0:03:01.3]} 3... Nc6 {[%clk 0:02:56.8]}
4. Bg2 {[%clk 0:03:01.7]} 4... g6 {[%clk 0:02:56.7]} 5. O-O {[%clk 0:03:01.1]}
5... Bg7 {[%clk 0:02:57.3]} 6. d4 {[%clk 0:03:01.6]} 6... cxd4 {[%clk 0:02:57]}
7. Nxd4 {[%clk 0:03:02.3]} 7... Nxd4 {[%clk 0:02:56.3]} 8. Qxd4 {[%clk
0:03:01.9]} 8... d6 {[%clk 0:02:57.2]} 9. Nc3 {[%clk 0:03:02]} 9... O-O {[%clk
0:02:57.7]} 10. Qd3 {[%clk 0:03:01.4]} 10... a6 {[%clk 0:02:57.8]} 11. Bd2
{[%clk 0:02:38.9]} 11... Rb8 {[%clk 0:02:56.9]} 12. Rac1 {[%clk 0:02:37.2]}
12... b5 {[%clk 0:02:55.8]} 13. cxb5 {[%clk 0:02:23.2]} 13... axb5 {[%clk
0:02:56.7]} 14. Nxb5 {[%clk 0:02:23.7]} 14... Ba6 {[%clk 0:02:49]} 15. a4 {[%clk
0:02:11.5]} 15... Qb6 {[%clk 0:02:48.1]} 16. Bc6 {[%clk 0:02:03.3]} 16... Rfc8
{[%clk 0:02:41.6]} 17. Qf3 {[%clk 0:01:47.6]} 17... d5 {[%clk 0:02:25.1]} 18.
Be3 {[%clk 0:01:39.9]} 18... Qa5 {[%clk 0:02:20.5]} 19. Bf4 {[%clk 0:01:30.9]}
19... Rb6 {[%clk 0:01:26.4]} 20. Bc7 {[%clk 0:01:22.2]} 20... Rxc7 {[%clk
0:01:26.1]} 21. Nxc7 {[%clk 0:01:21.1]} 21... Bc4 {[%clk 0:01:16.2]} 22. Bb5
{[%clk 0:01:14.1]} 22... Bxb5 {[%clk 0:00:39.3]} 23. axb5 {[%clk 0:01:14.2]}
23... Ne4 {[%clk 0:00:27.8]} 24. Nxd5 {[%clk 0:01:07.6]} 24... Nd2 {[%clk
0:00:19.6]} 25. Rc8+ {[%clk 0:01:07.2]} 25... Bf8 {[%clk 0:00:18.8]} 26. Qf4
{[%clk 0:01:00.5]} 26... Kg7 {[%clk 0:00:07]} 27. Nxb6 {[%clk 0:00:47.4]} 27...
Nxf1 {[%clk 0:00:05.1]} 28. Qd4+ {[%clk 0:00:44.8]} 28... f6 {[%clk 0:00:03.8]}
29. Kxf1 {[%clk 0:00:35.6]} 29... e5 {[%clk 0:00:04]} 30. Rc7+ {[%clk 0:00:24]}
30... Kh6 {[%clk 0:00:03.2]} 31. Qe3+ {[%clk 0:00:20.2]} 31... g5 {[%clk
0:00:02.7]} 32. Nd5 {[%clk 0:00:17.6]} 1-0

[Event "*** SCC Grand Prix: Titled Tuesday Blitz"]
[Site "Chess.com"]
[Date "2020.06.02"]
[Round "6"]
[White "NefeLV"]
[Black "AlanZhang"]
[Result "0-1"]
[WhiteElo "1772"]
[BlackElo "2220"]
[TimeControl "180+1"]
[EndTime "11:09:02 PDT"]
[Termination "AlanZhang won by checkmate"]

1. c4 {[%clk 0:03:00.9]} 1... e6 {[%clk 0:02:59.2]} 2. Nc3 {[%clk 0:03:01.5]}
2... d5 {[%clk 0:02:58.5]} 3. d4 {[%clk 0:03:01.3]} 3... Nf6 {[%clk 0:02:58.5]}
4. g3 {[%clk 0:03:00.7]} 4... dxc4 {[%clk 0:02:21.4]} 5. Qa4+ {[%clk 0:02:57.2]}
5... Nbd7 {[%clk 0:02:19.7]} 6. Qxc4 {[%clk 0:02:56.1]} 6... a6 {[%clk
0:02:19.1]} 7. Bg2 {[%clk 0:02:55.1]} 7... b5 {[%clk 0:02:08.5]} 8. Qb3 {[%clk
0:02:53]} 8... Rb8 {[%clk 0:02:07.2]} 9. Nf3 {[%clk 0:02:48.8]} 9... Bb7 {[%clk
0:02:05.2]} 10. O-O {[%clk 0:02:47.8]} 10... c5 {[%clk 0:02:05.1]} 11. Bg5
{[%clk 0:02:42]} 11... Be7 {[%clk 0:02:03.3]} 12. Rad1 {[%clk 0:02:38.6]} 12...
c4 {[%clk 0:01:42.1]} 13. Qc2 {[%clk 0:02:37.9]} 13... O-O {[%clk 0:01:33.5]}
14. Ne5 {[%clk 0:02:31.8]} 14... Bxg2 {[%clk 0:01:04.6]} 15. Kxg2 {[%clk
0:02:32.7]} 15... Rc8 {[%clk 0:00:53]} 16. Ne4 {[%clk 0:02:27.9]} 16... Nxe4
{[%clk 0:00:48.7]} 17. Bxe7 {[%clk 0:02:23.3]} 17... Qxe7 {[%clk 0:00:49.6]} 18.
Qxe4 {[%clk 0:02:17.6]} 18... Nf6 {[%clk 0:00:48.3]} 19. Qh4 {[%clk 0:02:14.2]}
19... Rfd8 {[%clk 0:00:46]} 20. f3 {[%clk 0:02:13]} 20... b4 {[%clk 0:00:44.7]}
21. e4 {[%clk 0:02:09]} 21... Qa7 {[%clk 0:00:43.3]} 22. d5 {[%clk 0:01:46.6]}
22... exd5 {[%clk 0:00:42.5]} 23. exd5 {[%clk 0:01:45.7]} 23... Rxd5 {[%clk
0:00:20.8]} 24. Nxc4 {[%clk 0:01:42.7]} 24... Qc5 {[%clk 0:00:11.9]} 25. Rxd5
{[%clk 0:01:37.3]} 25... Nxd5 {[%clk 0:00:12.8]} 26. b3 {[%clk 0:01:29.4]} 26...
h6 {[%clk 0:00:09.4]} 27. Re1 {[%clk 0:01:26.5]} 27... a5 {[%clk 0:00:07.9]} 28.
Qe4 {[%clk 0:01:23.6]} 28... a4 {[%clk 0:00:07]} 29. Re2 {[%clk 0:01:15.9]}
29... Nc3 {[%clk 0:00:06.8]} 30. Qe7 {[%clk 0:01:08.3]} 30... Nxe2 {[%clk
0:00:07.2]} 31. Qxe2 {[%clk 0:01:07.5]} 31... axb3 {[%clk 0:00:06.7]} 32. axb3
{[%clk 0:01:07.8]} 32... Qd4 {[%clk 0:00:07.2]} 33. Qe7 {[%clk 0:01:04.5]} 33...
Qc3 {[%clk 0:00:07]} 34. Nd6 {[%clk 0:01:02.5]} 34... Rf8 {[%clk 0:00:07.1]} 35.
Ne4 {[%clk 0:00:59.3]} 35... Qxb3 {[%clk 0:00:07]} 36. Qe5 {[%clk 0:00:56]}
36... Qc2+ {[%clk 0:00:06.8]} 37. Kh3 {[%clk 0:00:55.2]} 37... b3 {[%clk
0:00:07.3]} 38. Qf4 {[%clk 0:00:51.4]} 38... b2 {[%clk 0:00:06.9]} 39. Qg4
{[%clk 0:00:51.4]} 39... b1=Q {[%clk 0:00:06.2]} 40. Nf6+ {[%clk 0:00:52.1]}
40... Kh8 {[%clk 0:00:06.3]} 41. Nh5 {[%clk 0:00:51.7]} 41... Qf5 {[%clk
0:00:05.9]} 42. Nxg7 {[%clk 0:00:50.4]} 42... Qxg4+ {[%clk 0:00:05.4]} 43. fxg4
{[%clk 0:00:51.3]} 43... Kxg7 {[%clk 0:00:05.5]} 44. Kh4 {[%clk 0:00:50.9]}
44... Qf1 {[%clk 0:00:05.4]} 45. h3 {[%clk 0:00:50.4]} 45... Re8 {[%clk
0:00:05]} 46. g5 {[%clk 0:00:49.3]} 46... hxg5+ {[%clk 0:00:04.5]} 47. Kg4
{[%clk 0:00:48.2]} 47... Re4+ {[%clk 0:00:04.6]} 48. Kxg5 {[%clk 0:00:47.7]}
48... Qf6+ {[%clk 0:00:03.9]} 49. Kh5 {[%clk 0:00:47.1]} 49... Qg6# {[%clk
0:00:04.4]} 0-1

[Event "*** SCC Grand Prix: Titled Tuesday Blitz"]
[Site "Chess.com"]
[Date "2020.06.02"]
[Round "6"]
[White "Saxar85"]
[Black "Indianlad"]
[Result "0-1"]
[WhiteElo "2730"]
[BlackElo "3024"]
[TimeControl "180+1"]
[EndTime "11:09:03 PDT"]
[Termination "Indianlad won on time"]

1. Nf3 {[%clk 0:02:59.8]} 1... d5 {[%clk 0:03:00.2]} 2. g3 {[%clk 0:02:57]} 2...
Nd7 {[%clk 0:03:00.8]} 3. d4 {[%clk 0:02:56]} 3... Nb6 {[%clk 0:03:00.1]} 4. Bg2
{[%clk 0:02:55.9]} 4... Bf5 {[%clk 0:03:00.1]} 5. O-O {[%clk 0:02:55.9]} 5... e6
{[%clk 0:03:00.6]} 6. b3 {[%clk 0:02:55.8]} 6... h6 {[%clk 0:02:59.9]} 7. Bb2
{[%clk 0:02:55.3]} 7... Nf6 {[%clk 0:03:00]} 8. Nbd2 {[%clk 0:02:54.9]} 8... Be7
{[%clk 0:02:59]} 9. c4 {[%clk 0:02:54.6]} 9... c6 {[%clk 0:02:58.9]} 10. a4
{[%clk 0:02:53.9]} 10... a5 {[%clk 0:02:58.3]} 11. e3 {[%clk 0:02:52.6]} 11...
O-O {[%clk 0:02:58.7]} 12. Qe2 {[%clk 0:02:52]} 12... Nbd7 {[%clk 0:02:57.7]}
13. h3 {[%clk 0:02:47.6]} 13... Bh7 {[%clk 0:02:54.3]} 14. Ba3 {[%clk
0:02:27.7]} 14... Bxa3 {[%clk 0:02:53.7]} 15. Rxa3 {[%clk 0:02:27.8]} 15... Qb6
{[%clk 0:02:54.3]} 16. Raa1 {[%clk 0:02:25.6]} 16... Rfc8 {[%clk 0:02:50.4]} 17.
Rac1 {[%clk 0:02:20]} 17... Qb4 {[%clk 0:02:36.1]} 18. c5 {[%clk 0:02:06.1]}
18... b6 {[%clk 0:02:32.6]} 19. cxb6 {[%clk 0:02:05.1]} 19... Qxb6 {[%clk
0:02:31.5]} 20. Rc3 {[%clk 0:02:04.5]} 20... Rc7 {[%clk 0:02:17]} 21. Rfc1
{[%clk 0:02:03.8]} 21... Rac8 {[%clk 0:02:17.6]} 22. Ne1 {[%clk 0:01:34.2]}
22... c5 {[%clk 0:02:07.7]} 23. Qb5 {[%clk 0:01:32.4]} 23... Qxb5 {[%clk
0:01:48.7]} 24. axb5 {[%clk 0:01:31.6]} 24... Ne8 {[%clk 0:01:49.2]} 25. Bf1
{[%clk 0:01:13.4]} 25... cxd4 {[%clk 0:01:44.2]} 26. Rxc7 {[%clk 0:01:10.4]}
26... Rxc7 {[%clk 0:01:44.8]} 27. Rxc7 {[%clk 0:01:09.6]} 27... dxe3 {[%clk
0:01:09.9]} 28. Rc1 {[%clk 0:00:26.6]} 28... exd2 {[%clk 0:01:09.6]} 29. Rd1
{[%clk 0:00:26.4]} 29... dxe1=Q {[%clk 0:01:10]} 30. Rxe1 {[%clk 0:00:26.5]}
30... Nd6 {[%clk 0:01:10.1]} 31. Rc1 {[%clk 0:00:22.7]} 31... Nb6 {[%clk
0:00:53.3]} 32. Rc6 {[%clk 0:00:20.4]} 32... Ndc8 {[%clk 0:00:53.6]} 33. Rc7
{[%clk 0:00:16.6]} 33... Kf8 {[%clk 0:00:53.8]} 34. f4 {[%clk 0:00:15.6]} 34...
Ke8 {[%clk 0:00:53.4]} 35. Kf2 {[%clk 0:00:14.9]} 35... Bg6 {[%clk 0:00:53.8]}
36. Ke3 {[%clk 0:00:14.5]} 36... Kd8 {[%clk 0:00:53.9]} 37. Rc6 {[%clk
0:00:14.6]} 37... a4 {[%clk 0:00:45.4]} 38. bxa4 {[%clk 0:00:13]} 38... Nxa4
{[%clk 0:00:46.3]} 39. Kd4 {[%clk 0:00:13]} 39... Ne7 {[%clk 0:00:45.3]} 40. Ra6
{[%clk 0:00:11.2]} 40... Nf5+ {[%clk 0:00:45.8]} 41. Ke5 {[%clk 0:00:08.3]}
41... Nc5 {[%clk 0:00:46.4]} 42. Ra8+ {[%clk 0:00:07.7]} 42... Kc7 {[%clk
0:00:46.9]} 0-1

[Event "*** SCC Grand Prix: Titled Tuesday Blitz"]
[Site "Chess.com"]
[Date "2020.06.02"]
[Round "6"]
[White "IwkooO"]
[Black "CroissantNeuf"]
[Result "1-0"]
[WhiteElo "2570"]
[BlackElo "2383"]
[TimeControl "180+1"]
[EndTime "11:09:03 PDT"]
[Termination "IwkooO won on time"]

1. e4 {[%clk 0:03:00.9]} 1... c6 {[%clk 0:02:59.8]} 2. d4 {[%clk 0:02:47.7]}
2... d5 {[%clk 0:03:00.7]} 3. e5 {[%clk 0:02:48.6]} 3... Bf5 {[%clk 0:03:00.1]}
4. Nd2 {[%clk 0:02:49.2]} 4... e6 {[%clk 0:02:59.5]} 5. Nb3 {[%clk 0:02:49.6]}
5... Nd7 {[%clk 0:02:56.3]} 6. Nf3 {[%clk 0:02:48.4]} 6... Qc7 {[%clk 0:02:52]}
7. Be2 {[%clk 0:02:34.1]} 7... c5 {[%clk 0:02:48.6]} 8. Nxc5 {[%clk 0:02:33.7]}
8... Bxc5 {[%clk 0:02:47.7]} 9. dxc5 {[%clk 0:02:34.6]} 9... Qxc5 {[%clk
0:02:45.8]} 10. c3 {[%clk 0:02:31.1]} 10... Ne7 {[%clk 0:02:41.4]} 11. O-O
{[%clk 0:02:27.2]} 11... O-O {[%clk 0:02:39.8]} 12. Re1 {[%clk 0:02:17.6]} 12...
Rac8 {[%clk 0:02:19.1]} 13. Qa4 {[%clk 0:01:32.4]} 13... Qc7 {[%clk 0:01:25.3]}
14. Qxa7 {[%clk 0:01:14.4]} 14... Nc6 {[%clk 0:00:51.3]} 15. Qa4 {[%clk
0:00:47.5]} 15... Ndxe5 {[%clk 0:00:42.4]} 16. Nxe5 {[%clk 0:00:47.4]} 16...
Qxe5 {[%clk 0:00:36]} 17. Bf4 {[%clk 0:00:41.2]} 17... Qe4 {[%clk 0:00:30.2]}
18. Qxe4 {[%clk 0:00:38.8]} 18... Bxe4 {[%clk 0:00:31.1]} 19. f3 {[%clk
0:00:36.5]} 19... Bg6 {[%clk 0:00:27.6]} 20. Bb5 {[%clk 0:00:36.7]} 20... Rfe8
{[%clk 0:00:18.1]} 21. a4 {[%clk 0:00:36.1]} 21... f6 {[%clk 0:00:16.7]} 22. Be3
{[%clk 0:00:21.3]} 22... e5 {[%clk 0:00:15.5]} 23. Bb6 {[%clk 0:00:18.5]} 23...
Re6 {[%clk 0:00:10.6]} 24. a5 {[%clk 0:00:18.4]} 24... h5 {[%clk 0:00:05.7]} 25.
Kf2 {[%clk 0:00:18.1]} 25... h4 {[%clk 0:00:05.5]} 26. Red1 {[%clk 0:00:18]}
26... Rd6 {[%clk 0:00:04.4]} 27. Rd2 {[%clk 0:00:17.5]} 27... Rd7 {[%clk
0:00:04.6]} 28. Rad1 {[%clk 0:00:17.2]} 28... Bf7 {[%clk 0:00:05.1]} 29. Ra1
{[%clk 0:00:15.9]} 29... Kh7 {[%clk 0:00:04]} 30. Ra4 {[%clk 0:00:14.8]} 30...
g5 {[%clk 0:00:03.5]} 31. Bd3+ {[%clk 0:00:12.1]} 31... Kg7 {[%clk 0:00:03.6]}
32. Bf5 {[%clk 0:00:12.2]} 1-0